Department,Entity, Transaction Date, Expense Type, Expense Area, Supplier Name,Transaction number, Amount, Invoice Description
FCDO,CSC,06/04/2021,Engagement,Programme Costs,NatWest CC,NOM001047,59,
FCDO,CSC,06/04/2021,Engagement,Programme Costs,NatWest CC,NOM001047,90,
FCDO,CSC,06/04/2021,Engagement,Programme Costs,NatWest CC,NOM001047,38.37,
FCDO,CSC,06/04/2021,Engagement,Programme Costs,NatWest CC,NOM001047,9.99,
FCDO,CSC,06/04/2021,Engagement,Programme Costs,NatWest CC,NOM001047,9.52,
FCDO,CSC,06/04/2021,Engagement,Programme Costs,NatWest CC,NOM001047,18.68,
FCDO,CSC,06/04/2021,Engagement,Programme Costs,NatWest CC,NOM001047,1643.75,
FCDO,CSC,06/04/2021,Engagement,Programme Costs,NatWest CC,NOM001047,14.22,
FCDO,CSC,06/04/2021,Engagement,Programme Costs,NatWest CC,NOM001047,19,
FCDO,CSC,08/04/2021,Scholar Stipend,Award Costs,Scholar,NOM001050,-26064.77,
FCDO,CSC,30/04/2021,Postage & Courier,Programme Costs,DHL,NOM001055,725.1,
FCDO,CSC,01/04/2021,Scholar Stipend,Award Costs,Scholar,PIN053202,2197.62,
FCDO,CSC,01/04/2021,Scholar Allowances,Award Costs,Scholar,PIN053204,300,
FCDO,CSC,01/04/2021,Scholar Stipend,Award Costs,Scholar,PIN053204,531.64,
FCDO,CSC,01/04/2021,Scholar Allowances,Award Costs,Scholar,PIN053205,173.47,
FCDO,CSC,01/04/2021,Scholar Stipend,Award Costs,Scholar,PIN053205,2087.63,
FCDO,CSC,01/04/2021,Scholar Stipend,Award Costs,Scholar,PIN053207,1369,
FCDO,CSC,08/04/2021,Scholar Stipend,Award Costs,Scholar,PIN053208,1116,
FCDO,CSC,08/04/2021,Scholar Stipend,Award Costs,Scholar,PIN053208,1369,
FCDO,CSC,08/04/2021,Scholar Stipend,Award Costs,Scholar,PIN053208,1116,
FCDO,CSC,08/04/2021,Scholar Stipend,Award Costs,Scholar,PIN053208,1704,
FCDO,CSC,08/04/2021,Scholar Stipend,Award Costs,Scholar,PIN053208,1116,
FCDO,CSC,08/04/2021,Scholar Stipend,Award Costs,Scholar,PIN053208,1704,
FCDO,CSC,08/04/2021,Scholar Stipend,Award Costs,Scholar,PIN053208,1704,
FCDO,CSC,08/04/2021,Scholar Stipend,Award Costs,Scholar,PIN053208,1116,
FCDO,CSC,08/04/2021,Scholar Stipend,Award Costs,Scholar,PIN053208,1116,
FCDO,CSC,08/04/2021,Scholar Stipend,Award Costs,Scholar,PIN053208,1116,
FCDO,CSC,08/04/2021,Scholar Allowances,Award Costs,Scholar,PIN053208,240,
FCDO,CSC,08/04/2021,Scholar Allowances,Award Costs,Scholar,PIN053208,240,
FCDO,CSC,08/04/2021,Bank Charges,Programme Costs,MasterCard Prepaid Management Services Ltd,PIN053208,136.57,
FCDO,CSC,08/04/2021,Reimbursements,Award Costs,Scholar,PIN053209,128,
FCDO,CSC,08/04/2021,Award Support Costs,Award Costs,Scholar,PIN053209,805,
FCDO,CSC,08/04/2021,Bank Charges,Programme Costs,MasterCard Prepaid Management Services Ltd,PIN053209,9.33,
FCDO,CSC,09/04/2021,Interview Costs,Programme Costs,Way With Words Group,PIN053211,1976.74,
FCDO,CSC,09/04/2021,Tuition Fee,Award Costs,Lond Sch Hygiene & Tropical Me,PIN053212,3873.6,
FCDO,CSC,08/04/2021,Scholar Allowances,Award Costs,Scholar,PIN053213,150,
FCDO,CSC,08/04/2021,Scholar Stipend,Award Costs,Scholar,PIN053213,1712.15,
FCDO,CSC,08/04/2021,Scholar Allowances,Award Costs,Scholar,PIN053213,150,
FCDO,CSC,08/04/2021,Scholar Stipend,Award Costs,Scholar,PIN053213,1775.37,
FCDO,CSC,08/04/2021,Scholar Allowances,Award Costs,Scholar,PIN053213,150,
FCDO,CSC,08/04/2021,Scholar Stipend,Award Costs,Scholar,PIN053213,962.28,
FCDO,CSC,08/04/2021,Scholar Allowances,Award Costs,Scholar,PIN053213,150,
FCDO,CSC,08/04/2021,Scholar Allowances,Award Costs,Scholar,PIN053213,433,
FCDO,CSC,08/04/2021,Scholar Stipend,Award Costs,Scholar,PIN053213,758.76,
FCDO,CSC,08/04/2021,Scholar Stipend,Award Costs,Scholar,PIN053213,4286.91,
FCDO,CSC,08/04/2021,Scholar Allowances,Award Costs,Scholar,PIN053213,150,
FCDO,CSC,08/04/2021,Scholar Stipend,Award Costs,Scholar,PIN053213,347.76,
FCDO,CSC,08/04/2021,Bank Charges,Programme Costs,MasterCard Prepaid Management Services Ltd,PIN053213,110.26,
FCDO,CSC,12/04/2021,Scholar Allowances,Award Costs,Scholar,PIN053214,150,
FCDO,CSC,12/04/2021,Scholar Stipend,Award Costs,Scholar,PIN053214,1712.15,
FCDO,CSC,12/04/2021,Scholar Allowances,Award Costs,Scholar,PIN053214,150,
FCDO,CSC,12/04/2021,Scholar Allowances,Award Costs,Scholar,PIN053214,433,
FCDO,CSC,12/04/2021,Scholar Stipend,Award Costs,Scholar,PIN053214,584.88,
FCDO,CSC,12/04/2021,Scholar Stipend,Award Costs,Scholar,PIN053214,2488.66,
FCDO,CSC,12/04/2021,Scholar Allowances,Award Costs,Scholar,PIN053214,150,
FCDO,CSC,12/04/2021,Scholar Stipend,Award Costs,Scholar,PIN053214,2568.75,
FCDO,CSC,12/04/2021,Scholar Allowances,Award Costs,Scholar,PIN053214,150,
FCDO,CSC,12/04/2021,Scholar Stipend,Award Costs,Scholar,PIN053214,1712.15,
FCDO,CSC,12/04/2021,Scholar Allowances,Award Costs,Scholar,PIN053214,150,
FCDO,CSC,12/04/2021,Scholar Stipend,Award Costs,Scholar,PIN053214,1712.15,
FCDO,CSC,12/04/2021,Scholar Allowances,Award Costs,Scholar,PIN053214,150,
FCDO,CSC,12/04/2021,Scholar Stipend,Award Costs,Scholar,PIN053214,1712.15,
FCDO,CSC,12/04/2021,Scholar Allowances,Award Costs,Scholar,PIN053214,150,
FCDO,CSC,12/04/2021,Scholar Stipend,Award Costs,Scholar,PIN053214,2848.3,
FCDO,CSC,12/04/2021,Scholar Allowances,Award Costs,Scholar,PIN053214,150,
FCDO,CSC,12/04/2021,Scholar Stipend,Award Costs,Scholar,PIN053214,1822.79,
FCDO,CSC,12/04/2021,Scholar Allowances,Award Costs,Scholar,PIN053214,150,
FCDO,CSC,12/04/2021,Scholar Stipend,Award Costs,Scholar,PIN053214,2256.51,
FCDO,CSC,12/04/2021,Scholar Allowances,Award Costs,Scholar,PIN053214,150,
FCDO,CSC,12/04/2021,Scholar Stipend,Award Costs,Scholar,PIN053214,2737.65,
FCDO,CSC,12/04/2021,Scholar Allowances,Award Costs,Scholar,PIN053214,150,
FCDO,CSC,12/04/2021,Scholar Stipend,Award Costs,Scholar,PIN053214,2887.45,
FCDO,CSC,12/04/2021,Scholar Allowances,Award Costs,Scholar,PIN053214,433,
FCDO,CSC,12/04/2021,Scholar Allowances,Award Costs,Scholar,PIN053214,1750,
FCDO,CSC,12/04/2021,Bank Charges,Programme Costs,MasterCard Prepaid Management Services Ltd,PIN053214,293.1,
FCDO,CSC,14/04/2021,Scholar Allowances,Award Costs,Scholar,PIN053215,165.59,
FCDO,CSC,14/04/2021,Scholar Allowances,Award Costs,Scholar,PIN053215,247,
FCDO,CSC,14/04/2021,Scholar Stipend,Award Costs,Scholar,PIN053215,2645.6,
FCDO,CSC,14/04/2021,Scholar Stipend,Award Costs,Scholar,PIN053216,2738,
FCDO,CSC,14/04/2021,Scholar Allowances,Award Costs,Scholar,PIN053217,431,
FCDO,CSC,14/04/2021,Scholar Stipend,Award Costs,Scholar,PIN053217,1269.72,
FCDO,CSC,14/04/2021,Bank Charges,Programme Costs,MasterCard Prepaid Management Services Ltd,PIN053217,17.01,
FCDO,CSC,16/04/2021,Scholar Allowances,Award Costs,Scholar,PIN053218,150,
FCDO,CSC,16/04/2021,Scholar Stipend,Award Costs,Scholar,PIN053218,1712.15,
FCDO,CSC,16/04/2021,Scholar Allowances,Award Costs,Scholar,PIN053218,150,
FCDO,CSC,16/04/2021,Scholar Stipend,Award Costs,Scholar,PIN053218,1490.84,
FCDO,CSC,16/04/2021,Scholar Allowances,Award Costs,Scholar,PIN053218,150,
FCDO,CSC,16/04/2021,Scholar Stipend,Award Costs,Scholar,PIN053218,1420.77,
FCDO,CSC,16/04/2021,Scholar Allowances,Award Costs,Scholar,PIN053218,150,
FCDO,CSC,16/04/2021,Scholar Stipend,Award Costs,Scholar,PIN053218,1712.15,
FCDO,CSC,16/04/2021,Scholar Allowances,Award Costs,Scholar,PIN053218,150,
FCDO,CSC,16/04/2021,Scholar Stipend,Award Costs,Scholar,PIN053218,1886.02,
FCDO,CSC,16/04/2021,Scholar Allowances,Award Costs,Scholar,PIN053218,150,
FCDO,CSC,16/04/2021,Scholar Allowances,Award Costs,Scholar,PIN053218,433,
FCDO,CSC,16/04/2021,Scholar Stipend,Award Costs,Scholar,PIN053218,1705.22,
FCDO,CSC,16/04/2021,Scholar Stipend,Award Costs,Scholar,PIN053218,2635.32,
FCDO,CSC,16/04/2021,Scholar Allowances,Award Costs,Scholar,PIN053218,150,
FCDO,CSC,16/04/2021,Scholar Stipend,Award Costs,Scholar,PIN053218,2832.5,
FCDO,CSC,16/04/2021,Bank Charges,Programme Costs,MasterCard Prepaid Management Services Ltd,PIN053218,168.79,
FCDO,CSC,20/04/2021,Scholar Allowances,Award Costs,Scholar,PIN053219,150,
FCDO,CSC,20/04/2021,Scholar Stipend,Award Costs,Scholar,PIN053219,268.73,
FCDO,CSC,20/04/2021,Scholar Allowances,Award Costs,Scholar,PIN053219,150,
FCDO,CSC,20/04/2021,Scholar Stipend,Award Costs,Scholar,PIN053219,268.73,
FCDO,CSC,20/04/2021,Scholar Allowances,Award Costs,Scholar,PIN053219,150,
FCDO,CSC,20/04/2021,Scholar Stipend,Award Costs,Scholar,PIN053219,331.96,
FCDO,CSC,20/04/2021,Scholar Allowances,Award Costs,Scholar,PIN053219,150,
FCDO,CSC,20/04/2021,Scholar Stipend,Award Costs,Scholar,PIN053219,1648.92,
FCDO,CSC,20/04/2021,Scholar Allowances,Award Costs,Scholar,PIN053219,150,
FCDO,CSC,20/04/2021,Scholar Stipend,Award Costs,Scholar,PIN053219,1680.53,
FCDO,CSC,20/04/2021,Bank Charges,Programme Costs,MasterCard Prepaid Management Services Ltd,PIN053219,49.5,
FCDO,CSC,19/04/2021,Scholar Stipend,Award Costs,Scholar,PIN053221,1629.24,
FCDO,CSC,19/04/2021,Scholar Stipend,Award Costs,Scholar,PIN053222,1864.58,
FCDO,CSC,23/04/2021,Award Support Costs,Award Costs,Kings College London,PIN053223,6440,
DFE,CSC,23/04/2021,Scholar Allowances,Award Costs,The University of Leeds,PIN053224,5712,
FCDO,CSC,23/04/2021,Tuition Fee,Award Costs,University of Manchester,PIN053225,4831.8,
FCDO,CSC,23/04/2021,Scholar Travel,Award Costs,Scholar,PIN053226,507,
FCDO,CSC,23/04/2021,Tuition Fee,Award Costs,University of Manchester,PIN053227,3623.85,
FCDO,CSC,23/04/2021,Scholar Allowances,Award Costs,Royal Veterinary College,PIN053228,1000,
FCDO,CSC,23/04/2021,Award Support Costs,Award Costs,University of Glasgow,PIN053229,1000,
FCDO,CSC,23/04/2021,Award Support Costs,Award Costs,University of Glasgow,PIN053230,11733,
FCDO,CSC,23/04/2021,Tuition Fee,Award Costs,Manchester Metropolitan University,PIN053232,12800,
FCDO,CSC,23/04/2021,Tuition Fee,Award Costs,The University of Warwick,PIN053233,4802,
FCDO,CSC,23/04/2021,Tuition Fee,Award Costs,University of Leicester,PIN053234,5000,
FCDO,CSC,23/04/2021,Tuition Fee,Award Costs,University of Bristol,PIN053235,8333.33,
FCDO,CSC,23/04/2021,Tuition Fee,Award Costs,University of Bristol,PIN053236,18000,
FCDO,CSC,23/04/2021,Award Support Costs,Award Costs,University of Bristol,PIN053237,7000,
FCDO,CSC,23/04/2021,Alumni Engagement,Programme Costs,Jon Spaull,PIN053238,840,
FCDO,CSC,23/04/2021,Alumni Engagement,Programme Costs,Jon Spaull,PIN053239,5040,
FCDO,CSC,23/04/2021,Alumni Engagement,Admin Costs,TFW Printers,PIN053240,2352,
FCDO,CSC,22/04/2021,Scholar Stipend,Award Costs,Scholar,PIN053241,501.99,
FCDO,CSC,22/04/2021,Scholar Allowances,Award Costs,Scholar,PIN053243,1750,
FCDO,CSC,22/04/2021,Scholar Allowances,Award Costs,Scholar,PIN053243,433,
FCDO,CSC,22/04/2021,Scholar Stipend,Award Costs,Scholar,PIN053243,1931.65,
FCDO,CSC,22/04/2021,Scholar Allowances,Award Costs,Scholar,PIN053243,433,
FCDO,CSC,22/04/2021,Scholar Stipend,Award Costs,Scholar,PIN053243,1822.87,
FCDO,CSC,22/04/2021,Bank Charges,Programme Costs,MasterCard Prepaid Management Services Ltd,PIN053243,63.71,
FCDO,CSC,26/04/2021,Scholar Allowances,Award Costs,Scholar,PIN053244,150,
FCDO,CSC,26/04/2021,Scholar Stipend,Award Costs,Scholar,PIN053244,1712.15,
FCDO,CSC,26/04/2021,Bank Charges,Programme Costs,MasterCard Prepaid Management Services Ltd,PIN053244,18.62,
FCDO,CSC,27/04/2021,Scholar Stipend,Award Costs,Scholar,PIN053245,2917.9,
FCDO,CSC,27/04/2021,Scholar Allowances,Award Costs,Scholar,PIN053246,3348,
FCDO,CSC,27/04/2021,Scholar Stipend,Award Costs,Scholar,PIN053249,2197.62,
FCDO,CSC,27/04/2021,Scholar Stipend,Award Costs,Scholar,PIN053251,1647.64,
FCDO,CSC,27/04/2021,Scholar Allowances,Award Costs,Scholar,PIN053251,36.67,
FCDO,CSC,30/04/2021,Tuition Fee,Award Costs,Loughborough University,PIN053252,18000,
FCDO,CSC,30/04/2021,Award Support Costs,Award Costs,Swansea University,PIN053253,8060,
FCDO,CSC,30/04/2021,Scholar Travel,Award Costs,Scholar,PIN053255,576.61,
FCDO,CSC,30/04/2021,Award Support Costs,Award Costs,Queens University Belfast,PIN053257,1200,
FCDO,CSC,30/04/2021,Tuition Fee,Award Costs,University of Greenwich,PIN053258,11200,
FCDO,CSC,30/04/2021,Visa Costs,Award Costs,University of Wolverhampton,PIN053263,132.81,
FCDO,CSC,30/04/2021,Scholar Allowances,Award Costs,University of Wolverhampton,PIN053263,400,
FCDO,CSC,30/04/2021,Scholar Allowances,Award Costs,University of Wolverhampton,PIN053263,450,
FCDO,CSC,30/04/2021,Tuition Fee,Award Costs,University of Wolverhampton,PIN053263,26700,
FCDO,CSC,30/04/2021,Scholar Travel,Award Costs,University of Wolverhampton,PIN053263,1059.2,
FCDO,CSC,30/04/2021,Tuition Fee,Award Costs,University of Sheffield,PIN053264,16640,
FCDO,CSC,30/04/2021,Award Support Costs,Award Costs,University of Leicester,PIN053265,5000,
FCDO,CSC,30/04/2021,Award Support Costs,Award Costs,University of Strathclyde,PIN053266,7890,
FCDO,CSC,30/04/2021,Tuition Fee,Award Costs,University of Huddersfield,PIN053267,11200,
FCDO,CSC,30/04/2021,Scholar Travel,Award Costs,Queen Mary University of London,PIN053268,922.32,
FCDO,CSC,30/04/2021,Visa Costs,Award Costs,Glasgow Caledonian University,PIN053269,121,
FCDO,CSC,30/04/2021,Scholar Travel,Award Costs,Glasgow Caledonian University,PIN053269,1408.22,
FCDO,CSC,30/04/2021,Tuition Fee,Award Costs,The University of Edinburgh,PIN053270,1825,
FCDO,CSC,30/04/2021,Scholar Allowances,Award Costs,Scholar,PIN053271,600,
FCDO,CSC,30/04/2021,Scholar Allowances,Award Costs,Scholar,PIN053272,600,
FCDO,CSC,30/04/2021,Miscellaneous,Admin Costs,Public Chairs Forum,PIN053273,1000,
FCDO,CSC,30/04/2021,Tuition Fee,Award Costs,The University of Edinburgh,PIN053274,-584,
FCDO,CSC,30/04/2021,Scholar Stipend,Award Costs,Scholar,PIN053275,1857.32,
FCDO,CSC,30/04/2021,Scholar Stipend,Award Costs,Scholar,PIN053276,1116,
FCDO,CSC,30/04/2021,Scholar Allowances,Award Costs,Scholar,PIN053277,7.89,
FCDO,CSC,30/04/2021,Scholar Stipend,Award Costs,Scholar,PIN053277,1665.98,
FCDO,CSC,29/04/2021,Scholar Stipend,Award Costs,Scholar,PIN053278,1712.15,
FCDO,CSC,29/04/2021,Scholar Allowances,Award Costs,Scholar,PIN053278,150,
FCDO,CSC,29/04/2021,Scholar Allowances,Award Costs,Scholar,PIN053278,150,
FCDO,CSC,29/04/2021,Scholar Stipend,Award Costs,Scholar,PIN053278,481.14,
FCDO,CSC,29/04/2021,Scholar Allowances,Award Costs,Scholar,PIN053278,1750,
FCDO,CSC,29/04/2021,Scholar Stipend,Award Costs,Scholar,PIN053278,1387.94,
FCDO,CSC,29/04/2021,Scholar Allowances,Award Costs,Scholar,PIN053278,433,
FCDO,CSC,29/04/2021,Bank Charges,Programme Costs,MasterCard Prepaid Management Services Ltd,PIN053278,60.64,
FCDO,CSC,30/04/2021,Scholar Allowances,Award Costs,Scholar,PIN053279,150,
FCDO,CSC,30/04/2021,Scholar Stipend,Award Costs,Scholar,PIN053279,1569.88,
FCDO,CSC,30/04/2021,Scholar Allowances,Award Costs,Scholar,PIN053279,150,
FCDO,CSC,30/04/2021,Scholar Stipend,Award Costs,Scholar,PIN053279,1712.15,
FCDO,CSC,30/04/2021,Scholar Allowances,Award Costs,Scholar,PIN053279,150,
FCDO,CSC,30/04/2021,Scholar Stipend,Award Costs,Scholar,PIN053279,1712.15,
FCDO,CSC,30/04/2021,Scholar Allowances,Award Costs,Scholar,PIN053279,150,
FCDO,CSC,30/04/2021,Scholar Stipend,Award Costs,Scholar,PIN053279,2848.3,
FCDO,CSC,30/04/2021,Scholar Allowances,Award Costs,Scholar,PIN053279,150,
FCDO,CSC,30/04/2021,Scholar Stipend,Award Costs,Scholar,PIN053279,2098.43,
FCDO,CSC,30/04/2021,Scholar Stipend,Award Costs,Scholar,PIN053279,1889.94,
FCDO,CSC,30/04/2021,Scholar Allowances,Award Costs,Scholar,PIN053279,433,
FCDO,CSC,30/04/2021,Scholar Stipend,Award Costs,Scholar,PIN053279,1889.94,
FCDO,CSC,30/04/2021,Scholar Allowances,Award Costs,Scholar,PIN053279,433,
FCDO,CSC,30/04/2021,Scholar Stipend,Award Costs,Scholar,PIN053279,3423.29,
FCDO,CSC,30/04/2021,Scholar Stipend,Award Costs,Scholar,PIN053279,2561.98,
FCDO,CSC,30/04/2021,Bank Charges,Programme Costs,MasterCard Prepaid Management Services Ltd,PIN053279,213.21,
FCDO,CSC,01/04/2021,Commission Meetings,Admin Costs,Commission Chair,PPI053282,3000,
BEIS,CSC,09/04/2021,Award Support Costs,Award Costs,Kings College London,PRF000212,-1153.02,
FCDO,CSC,12/04/2021,Immigration Health Surcharge,Award Costs,Scholar,PRF000213,-964.2,
